Workbook

Sheet Introduction
B5: Gomphrena Budget
B6: Version 1.0
B7: Rachel Painter | I7: Eryn Bell
B8: Email: rpainter@utk.edu | I8: Email: ebell@utk.edu
B9: Becky Bowling
B10: Email: bowling10@utk.edu
B27: Programs in agriculture and natural resources, 4-H youth development, family and consumer sciences, and resource development.
B28: University of Tennessee Institute of Agriculture, U.S. Department of Agriculture and country governments cooperating.
B29: UT Extension provide equal opportunities in programs and employment.

Sheet Assumptions
B2: Assumptions
B5: This spreadsheet contains the 2025 University of Tennessee cut flower budget for Gomphrena. Quantities and prices can be modified on the budget for any light blue cell. This spreadsheet should not be considered representative of all circumstances and is provided as a template or guide that can be used to estimate cost of production. Inputs used and prices for inputs vary tremendously from farm-to-farm; as such, producers are encouraged to use their own inputs, input prices, and cost structures for budgeting and planning purposes.
B10: This budget assumes that this crop is part of a 1/4-acre cut flower operation (approximately 10,890 sq. ft.) managed by one full-time employee (40 hours per week), meaning the farm is assumed to have 5 production spaces of summer annual flowers grown on 1,000 square foot plots each. Expenses such as labor, utilities, equipment, and materials are shared across the entire operation, with each flower section bearing equal distribution of these costs (20%). This assumption allows for management and budgeting for a flower farm producing multiple flower types on a 1/4-acre plot.
B15: This budget assumes various gomphrena varieties planted on 9 inch spacing for a seeding rate of approximately 1,780 seeds in a 1,000 sq. ft. plot. (333 ft. length, 3 ft wide bed, with 4 rows of seeds per bed).
B17: Variable Costs
B19: 1The marketed rate represents the percentage of flower stems successfully sold after accounting for production losses and unsold inventory. Losses can occur from crop failure, transplant issues, harvest or post-harvest damage, and stems that remain unsold due to market limitations. Marketed rates typically vary depending on the producer’s production skills and experience, as well as anticipated market demand. Producers are encouraged to adjust the marketed rate to reflect experience and skills regarding management practices, crop conditions, and sales opportunities.
B26: 2An average of 5 stems per plant assumed based on data from a 2024 UT cut flower study.
B28: 3An average price per stem for direct to consumer sales was estimated using the Tennessee Farmers Market Price Reports for various farmers markets as well as prices from experienced producers from across the state. As significant regional and seasonal price variability may exist, users are encouraged to adjust this price to reflect market conditions based on specific location, customer demand, and production to improve the accuracy of the budget calculations. Source: https://arec.tennessee.edu/extension/tennessee-market-highlights/
B33: 4An assumption that all seeds are grown as transplants (plugs) by the producer for succession planting. Seed cost estimated as average cost of various varieties from common seed supplier prices. This estimate includes the average seed price calculated above and the cost of common growing medium, 606 black growing trays with 36 cells per tray, and energy use of a typical seed starting wire rack station using 16 T8, 18W, 4 ft. bulbs running for 16 hours per day for 2 months to grow transplants. The fixed cost of the wire rack station and bulbs are included in the general overhead fixed costs.
B39: 5For accurate fertilizer and lime recommendations, take a soil sample. An assumption of 20% of soil sample costs are distributed to this crop. Source: https://soillab.tennessee.edu/soil-testing/field-soil-samples/
B42: 6Total fertilizer and pest control applications split over multiple applications. Fertilizer and pest control applications are representative of typical operations in Tennessee after proper testing and following current University of Tennessee Extension recommendations. Recommendations are current at time of publication and will be updated regularly; however, recommendations for agricultural inputs including pesticide registrations may be updated and inclusion in the budget should not be interpreted as a recommendation for use. Consult a county Extension agent for current application and control recommendations.
B47: County Extension office contact information available here.
B48: 7Irrigation variable costs include water cost, driptape and attachments which would often be purchased annually. Irrigation is assumed to be set up as 3 ft wide beds with 2 drip lines of 5/8", 6 mil drip tape with a flow rate of 0.5 gpm. Water cost is estimated for applying 1 inch of water per week with 12 in. emitter spacing and average of water cost calculated from both urban and rural cities costs per 1,000 gal across Tennessee.
B53: 8Staple and ground cover cost estimated for a 6 inch sod staple with a flat top to secure a 3.2 oz woven black ground cover. If no ground cover is used, ground cover and staple cost can be removed.
B56: 9Flower netting costs include the purchase of 6-inch by 6-inch netting and step-in fence posts, which are used to support the netting for plant stabilization throughout the growing season.
B59: 10Labor is estimated as one full time employee managing the 1/4 acre operation. Therefore, 20% of the employee's time would be devoted to this crop, resulting in 8 hours per week for the number of weeks spent producing the crop. This assumption was accurate based on labor hours from a UT cut flower study in 2024. Labor rate is the USDA Adverse Wage Rate for farm workers for 2025.
B60: Source: https://flag.dol.gov/wage-data/adverse-effect-wage-rates#range
B62: 11Machinery repair and maintenance cost are estimated as 5% of purchase price of large equipment, with 20% of the cost allocated to this crop.
B65: 12Fuel and propane estimated to prepare ground, burn holes into woven ground cover, and maintain grass rows between production spaces throughout growing season. Current average prices are estimated, but should be adjusted to reflect current relevant prices.
B68: 13Typical harvest containers are assumed as a variable expense as some harvest containers may be damaged or provided for a customer for bulk purchases. Purchasing new harvest containers annually can assist with sanitation and be part of an integrated pest management strategy.
B71: 14Marketing cost are estimated at 20% of maximum gross sales. Marketing costs include packaging such as paper or plastic wrap, bands to secure stems, transportation to selling locations, promotional materials, and other costs not specified related to post-harvest and selling expenses.
B75: 15An operating interest for 6 months of operating capital is estimated at a current interest rate of 7% of all variable expenses. This should be adjusted to reflect current interest rates and considered an opportunity cost of capital being utilized for this enterprise.
B78: Fixed Costs
B79: 16Small tools and equipment include shovels, rakes, a propane torch to burn holes in ground cover, a wheel barrow, hand pruners, gloves, loppers, hammers, mallets, and the main irrigation hookup equipment costs are estimated with a useful life of 3 years and 20% of calculated annual expenses allocated to this crop.
B83: 17Estimated cost of common tiller and lawn mower used for cut flower production and operation maintenance are calculated for the 1/4 acre operation with a useful life of 5 years and 20% of cost allocated to this crop.
B86: 18Expenses for a storage and post-harvest handling building with dimensions of 15'X20'X16' are estimated with a useful life of 15 years, along with interest, insurance, property taxes, repairs on the building. This building would be used for the entire operation with 20% of the annual cost allocated to this crop.
B90: 19Returns to land, ownership, and capital are estimated at 10% of the total variable costs, reflecting the opportunity cost of utilizing the land and invested capital in the flower operation.
B93: 20General overhead costs are estimated at 10% of total production costs of the budget. These costs include expenses not previously accounted for including the transplant starting wire rack and lights, general utilities, insurance, office supplies, administrative or professional support or fees.

Sheet Gomphrena Production Budget
A1: Gomphrena Budget
A2: Flower Variety | B2: Gomphrena, Various Varieties
A3: Production Space | B3: 1000 | C3: sq. ft.
A4: Seeding Rate | B4: 1780 | C4: seeds
A5: Marketed Rate1 | B5: 0.65
A6: Average Stems/ Plant2 | B6: ='Gomphrena Input Calculations'!K$16 -> 6.766519824
A8: Gross Income | B8: Unit | C8: Quantity | D8: $/Unit | E8: Total Estimate
A9: Gomphrena Stems3 | B9: Stem | C9: =B4*B5*B6 -> 7828.863436 | D9: ='Gomphrena Input Calculations'!B$21 -> 0.85 | E9: =C9*D9 -> 6654.533921
A11: Variable Costs | B11: Unit | C11: Quantity | D11: $/Unit | E11: Total Estimate
A12: Transplants (growing plugs)4 | B12: plugs | C12: =B4 -> 1780 | D12: ='Gomphrena Input Calculations'!C$37 -> 0.07453286517 | E12: =C12*D12 -> 132.6685
A13: Soil Test5 | B13: test | C13: 0.2 | D13: 15 | E13: =C13*D13 -> 3
A14: Fertilizer - 20-10-206 | B14: lb. | C14: ='Gomphrena Input Calculations'!F$41 -> 10 | D14: ='Gomphrena Input Calculations'!I$41 -> 1.5032 | E14: 15.032
A15: Fungicide - cost of 1 spray throughout growing season6 | E15: ='Gomphrena Input Calculations'!N$60 -> 1.60875
A16: Insecticide - cost of 2 sprays throughout growing season6 | E16: ='Gomphrena Input Calculations'!M$66 -> 4.7425
A17: Irrigation Supplies7
A18: Dripline purchased annually | B18: linear ft. | C18: ='Gomphrena Input Calculations'!E$75 -> 666.6666667 | D18: ='Gomphrena Input Calculations'!H$75 -> 0.0496 | E18: =C18*D18 -> 33.06666667
A19: Attachments purchased annually | C19: 1 | D19: ='Gomphrena Input Calculations'!H$98 -> 67.06 | E19: 67.06
A20: Operation of Irrigation | B20: water use in 1,000 gal. | C20: ='Gomphrena Input Calculations'!K$102 -> 15.08754 | D20: ='Gomphrena Input Calculations'!L$102 -> 6.836333333 | E20: =C20*D20 -> 103.1434526
A21: Staples for Ground Cover8 | B21: staples | C21: ='Gomphrena Input Calculations'!G$50 -> 1000 | D21: ='Gomphrena Input Calculations'!D$52 -> 0.07795 | E21: =D21*C21 -> 77.95
A22: Black Woven Ground Cover8 | B22: ft. | C22: 1000 | D22: ='Gomphrena Input Calculations'!G$47 -> 0.0300137037 | E22: =C22*D22 -> 30.0137037
A23: Labor10 | B23: hours | C23: ='Gomphrena Input Calculations'!F$111 -> 112 | D23: ='Gomphrena Input Calculations'!C$113 -> 15.87 | E23: 1777.44
A24: Machinery Repair and Maintenance (5%)11 | B24: 1,000 sq. ft. | C24: 1 | D24: ='Gomphrena Input Calculations'!B$127 -> 60 | E24: =D24*C24 -> 60
A25: Fuel12 | B25: gal. | C25: ='Gomphrena Input Calculations'!H$149 -> 6 | D25: ='Gomphrena Input Calculations'!E$150 -> 3.75 | E25: =C25*D25 -> 22.5
A26: Propane12 | B26: lb. | C26: ='Gomphrena Input Calculations'!B$152 -> 0.4 | D26: ='Gomphrena Input Calculations'!E$151 -> 6.5 | E26: 2.6
A27: Harvest Containers13 | B27: each | C27: 10 | D27: ='Gomphrena Input Calculations'!D$107 -> 2.05 | E27: =C27*D27 -> 20.5
A28: Marketing Costs (20% of Estimated Gross Income)14 | D28: =E9*0.2 -> 1330.906784 | E28: =D28 -> 1330.906784
A29: Operating Interest (7% of Variable Costs)15 | C29: 0.07 | D29: =(SUM(E12:E28)/2) -> 1841.116179 | E29: =D29*C29 -> 128.8781325
A30: Total Variable Costs | E30: =SUM(E12:E29) -> 3811.11049
A32: Fixed Costs | B32: Unit | C32: Quantity | D32: $/Unit | E32: Total Estimate
A33: Small Tools and Equipment16 | B33: Useful Life of 3 Years | C33: 1 | D33: ='Gomphrena Input Calculations'!B$145 -> 102.1406667 | E33: =C33*D33 -> 102.1406667
A34: Tiller17 | B34: Model 732 Tiller | C34: 1 | D34: ='Gomphrena Input Calculations'!B$122 -> 18.56 | E34: =C34*D34 -> 18.56
A35: Lawn Mower17 | B35: Mower 35" | C35: 1 | D35: ='Gomphrena Input Calculations'!B$125 -> 10.24 | E35: =D35*C35 -> 10.24
A36: Irrigation System Main Component Attachments | C36: 1 | D36: ='Gomphrena Input Calculations'!E$100 -> 18.07666667 | E36: =D36*C36 -> 18.07666667
A37: Storage and Post-Harvest Handling Building18 | B37: (15'X20'X16') | C37: 1 | D37: ='Gomphrena Input Calculations'!N$160 -> 166.9676142 | E37: =C37*D37 -> 166.9676142
A38: Returns to Land, Ownership, and Capital (10% of Variable Costs)19 | D38: =E$30*0.1 -> 381.111049 | E38: =D38 -> 381.111049
A39: General Overhead Cost (15% of Total Production Cost)20 | D39: =(SUM($E$30,$E$33:$E$38))*0.15 -> 676.2309729 | E39: =D39 -> 676.2309729
A40: Total Fixed Costs | E40: =SUM(E33:E39) -> 1373.326969
A41: Total Specified Costs | E41: =E40+E30 -> 5184.437459
A43: Returns Over Specified Cost | E43: =E9-E41 -> 1470.096462
A123: Gomphrena Budget
A124: Flower Variety | B124: Gomphrena, Various Varieties
A125: Production Space | B125: 1000 | C125: sq. ft.
A126: Seeding Rate | B126: 1780 | C126: seeds
A127: Marketed Rate | B127: 0.65
A128: Average Stems/ Plant | B128: ='Gomphrena Input Calculations'!K$16 -> 6.766519824
A130: Gross Income | B130: Unit | C130: Quantity | D130: $/Unit | E130: Total Estimate
A131: Gomphrena Stems | B131: Stem | C131: =B126*B127*B128 -> 7828.863436 | D131: ='Gomphrena Input Calculations'!B$21 -> 0.85 | E131: =C131*D131 -> 6654.533921
A133: Variable Costs | B133: Unit | C133: Quantity | D133: $/Unit | E133: Total Estimate
A134: Transplants (growing plugs) | B134: plugs | C134: =B126 -> 1780 | D134: ='Gomphrena Input Calculations'!C$37 -> 0.07453286517 | E134: =C134*D134 -> 132.6685
A135: Soil Test | B135: test | C135: 0.2 | D135: 15 | E135: =C135*D135 -> 3
A136: Fertilizer - 20-10-20 | B136: lb. | C136: ='Gomphrena Input Calculations'!F$41 -> 10 | D136: ='Gomphrena Input Calculations'!I$41 -> 1.5032 | E136: 15.032
A137: Fungicide - cost of 1 spray throughout growing season | E137: ='Gomphrena Input Calculations'!N$60 -> 1.60875
A138: Insecticide - cost of 4 sprays throughout growing season | E138: ='Gomphrena Input Calculations'!M$66 -> 4.7425
A139: Irrigation Supplies
A140: Dripline purchased annually | B140: linear ft. | C140: ='Gomphrena Input Calculations'!E$75 -> 666.6666667 | D140: ='Gomphrena Input Calculations'!H$75 -> 0.0496 | E140: =C140*D140 -> 33.06666667
A141: Attachments purchased annually | C141: 1 | D141: ='Gomphrena Input Calculations'!H$98 -> 67.06 | E141: 67.06
A142: Operation of Irrigation | B142: water use in 1,000 gal. | C142: ='Gomphrena Input Calculations'!K$102 -> 15.08754 | D142: ='Gomphrena Input Calculations'!L$102 -> 6.836333333 | E142: =C142*D142 -> 103.1434526
A143: Staples for Ground Cover | B143: staples | C143: ='Gomphrena Input Calculations'!G$50 -> 1000 | D143: ='Gomphrena Input Calculations'!D$52 -> 0.07795 | E143: =D143*C143 -> 77.95
A144: Black Woven Ground Cover | B144: ft. | C144: 1000 | D144: ='Gomphrena Input Calculations'!G$47 -> 0.0300137037 | E144: =C144*D144 -> 30.0137037
A145: Labor | B145: hours | C145: ='Gomphrena Input Calculations'!F$111 -> 112 | D145: ='Gomphrena Input Calculations'!C$113 -> 15.87 | E145: 1777.44
A146: Machinery Repair and Maintenance (5%) | B146: 1,000 sq. ft. | C146: 1 | D146: ='Gomphrena Input Calculations'!B$127 -> 60 | E146: =D146*C146 -> 60
A147: Fuel | B147: gal. | C147: ='Gomphrena Input Calculations'!H$149 -> 6 | D147: ='Gomphrena Input Calculations'!E$150 -> 3.75 | E147: =C147*D147 -> 22.5
A148: Propane | B148: lb. | C148: ='Gomphrena Input Calculations'!B$152 -> 0.4 | D148: ='Gomphrena Input Calculations'!E$151 -> 6.5 | E148: 2.6
A149: Harvest Containers | B149: each | C149: 10 | D149: ='Gomphrena Input Calculations'!D$107 -> 2.05 | E149: =C149*D149 -> 20.5
A150: Marketing Costs (20% of Estimated Gross Income) | D150: =E131*0.2 -> 1330.906784 | E150: =D150 -> 1330.906784
A151: Operating Interest (7% of Variable Costs) | C151: 0.07 | D151: =(SUM(E134:E150)/2) -> 1841.116179 | E151: =D151*C151 -> 128.8781325
A152: Total Variable Costs | E152: =SUM(E134:E151) -> 3811.11049
A154: Fixed Costs | B154: Unit | C154: Quantity | D154: $/Unit | E154: Total Estimate
A155: Small Tools and Equipment | B155: Useful Life of 3 Years | C155: 1 | D155: ='Gomphrena Input Calculations'!B$145 -> 102.1406667 | E155: =C155*D155 -> 102.1406667
A156: Tiller | B156: Model 732 Tiller | C156: 1 | D156: ='Gomphrena Input Calculations'!B$122 -> 18.56 | E156: =C156*D156 -> 18.56
A157: Lawn Mower | B157: Mower 35" | C157: 1 | D157: ='Gomphrena Input Calculations'!B$125 -> 10.24 | E157: =D157*C157 -> 10.24
A158: Irrigation System Main Component Attachments | C158: 1 | D158: ='Gomphrena Input Calculations'!E$100 -> 18.07666667 | E158: =D158*C158 -> 18.07666667
A159: Storage and Post-Harvest Handling Building | B159: (15'X20'X16') | C159: 1 | D159: ='Gomphrena Input Calculations'!N$160 -> 166.9676142 | E159: =C159*D159 -> 166.9676142
A160: Returns to Land, Ownership, and Capital (10% of Variable Costs) | D160: =E$30*0.1 -> 381.111049 | E160: =D160 -> 381.111049
A161: General Overhead Cost (15% of Total Production Cost) | D161: =(SUM($E$30,$E$33:$E$38))*0.15 -> 676.2309729 | E161: =D161 -> 676.2309729
A162: Total Fixed Costs | E162: =SUM(E155:E161) -> 1373.326969
A163: Total Specified Costs | E163: =E162+E152 -> 5184.437459
A165: Returns Over Specified Cost | E165: =E131-E163 -> 1470.096462

Sheet Gomphrena Input Calculations (hidden)
A1: 1000 | B1: sq ft bed | D1: 3 ft wide by 333.3 ft long bed. 9 inch spacing means 4 rows of seeds per bed for approx 1,780 seeds.
A2: ='Gomphrena Production Budget'!B4 -> 1780 | B2: seeds
A4: Planting Data
A5: Row | B5: Variety | C5: Type | D5: N Level | E5: Succession | F5: Number Planted | G5: Survived | H5: Square feet/plot | I5: Square feet/MedN | J5: Square feet/LowN | K5: Total Stems/Plot | L5: Total Stems/MedN | M5: Total Stems/LowN | N5: Stems/ft2 | O5: Avg Stems/ft2/cultivar/N Level
A6: 1 | B6: Q Purple | C6: Gomphrena | D6: Med | E6: 1 | F6: 35 | G6: 35 | H6: 15 | I6: 15 | K6: 290 | L6: 290 | N6: 19.3
A7: 1 | B7: Q Purple | C7: Gomphrena | D7: Med | E7: 2 | F7: 35 | G7: 35 | H7: 15 | I7: 15 | K7: 161 | L7: 161 | N7: 10.7
A8: 3 | B8: Q Purple | C8: Gomphrena | D8: Med | E8: 3 | F8: 16 | G8: 16 | H8: 9 | I8: 9 | K8: 143 | L8: 143 | N8: 15.9 | O8: 15.3
A9: 1 | B9: Q Purple | C9: Gomphrena | D9: Low | E9: 1 | F9: 25 | G9: 25 | H9: 12 | J9: 12 | K9: 130 | M9: 130 | N9: 10.8
A10: 2 | B10: Q Purple | C10: Gomphrena | D10: Low | E10: 2 | F10: 17 | G10: 17 | H10: 9 | J10: 9 | K10: 82 | M10: 82 | N10: 9.1 | O10: 10
A11: 2 | B11: Q Orange | C11: Gomphrena | D11: Med | E11: 1 | F11: 35 | G11: 35 | H11: 15 | I11: 15 | K11: 217 | L11: 217 | N11: 14.5
A12: 2 | B12: Q Orange | C12: Gomphrena | D12: Med | E12: 2 | F12: 18 | G12: 17 | H12: 9 | I12: 9 | K12: 173 | L12: 173 | N12: 19.2 | O12: 16.8
A13: 1 | B13: Q Orange | C13: Gomphrena | D13: Low | E13: 1 | F13: 34 | G13: 33 | H13: 13.5 | J13: 13.5 | K13: 271 | M13: 271 | N13: 20.1
A14: 1 | B14: Q Orange | C14: Gomphrena | D14: Low | E14: 2 | F14: 35 | G14: 14 | H14: 9 | J14: 9 | K14: 69 | M14: 69 | N14: 7.7 | O14: 13.9
F15: =SUM(F6:F14) -> 250 | G15: =SUM(G6:G14) -> 227 | H15: =SUM(H6:H14) -> 106.5 | K15: =SUM(K6:K14) -> 1536
F16: Avg. Survival Rate | G16: =G15/F15 -> 0.908 | J16: Stems Per Plant | K16: =K15/G15 -> 6.766519824
A18: Stem Price Data
A19: Source | B19: Price
A20: https://beeswingfarm.com/wholesale-florals-by-season-costs/#latesummer | B20: 0.85
A21: Average Price Per Stem | B21: =B20 -> 0.85
A23: Seed Prices
A24: Seed Prices from Johnny's | B24: Number of Seeds | C24: Price | D24: Average Seed Price
A25: Purple | B25: 1000 | C25: 11.95 | D25: =C25/B25 -> 0.01195
A26: Orange | B26: 1000 | C26: 11.95 | D26: =C26/B26 -> 0.01195
D27: =AVERAGE(D25:D26) -> 0.01195
B28: Trays per bag | C28: Trays needed | D28: # Bags Needed | E28: Price per bag | F28: Price for Plugs
A29: Promix 2.8 cu ft bags | B29: 40 | C29: 50 | D29: =C29/B29 -> 1.25 | E29: 21.79 | F29: =D29*E29 -> 27.2375
A30: planting all as plugs
A32: Growing Transplants cost addition to seed cost | B32: For all plugs | D32: Cells per tray | E32: Price Per Tray | F32: # of Trays | G32: Total tray price
A33: Avg seed cost | B33: =A2*D27 -> 21.271 | D33: 36 | E33: 0.8 | F33: =C29 -> 50 | G33: =E33*F33 -> 40
A34: Growing Medium | B34: =F29 -> 27.2375 | D34: bulbs | E34: Wattage | F34: hours run a day | G34: Electricity cost per kwh | I34: Cost per month for 1 bulb | J34: Cost per month for all bulbs | K34: Months run
A35: Trays | B35: =G33 -> 40 | D35: 16 | E35: 18 | F35: 16 | G35: 0.16 | I35: =1.38 -> 1.38 | J35: =I35*D35 -> 22.08 | K35: 2 | L35: =J35*K35 -> 44.16
A36: Seed starting light energy use | B36: =L35 -> 44.16
A37: Total cost of Transplants per Transplant | B37: =SUM(B33:B36) -> 132.6685 | C37: =B37/A2 -> 0.07453286517
A39: Fertilizer
A40: Fertilizer | B40: Lbs. of actual N per 1,000 sq ft | C40: N per bag | D40: Lbs. in Bag | E40: lbs of N in bag | F40: Applying lbs of product | G40: Receipt Price | H40: Lbs. in Bag | I40: Price/Lb.
A41: Medium appl of fertilizer - 20-10-20 | B41: 2 | C41: 0.2 | D41: 25 | E41: =D41*C41 -> 5 | F41: =B41*E41 -> 10 | G41: 37.58 | H41: 25 | I41: =G41/H41 -> 1.5032
A42: *Note: 2 pounds of nitrogen per 1,000 sq ft is medium fertilization split over 8 applications total
A44: Ground Cover
A45: Ground Cover | B45: width | C45: length | D45: Total sq ft | E45: price each | G45: Price per sq ft | H45: Total sq ft used
A46: DeWitt 3.2 oz Sunbelt, Woven Ground Cover Black 6 ft by 300 | B46: 6 | C46: 300 | D46: =B46*C46 -> 1800 | E46: 162.074 | G46: =E46/D46 -> 0.09004111111 | H46: 1000
G47: =G46/3 -> 0.0300137037 | H47: Lats 3 Years
A48: Staples
A49: Staples | B49: Total Bought | C49: Cost | D49: Cost per Staple | E49: Staples per Sq. Ft. | F49: Total Sq. Ft. | G49: Total # Staples
A50: Pro trade 6 inch sod staple flat top | B50: 300 | C50: 18 | D50: =C50/B50 -> 0.06 | E50: 1 | F50: 1000 | G50: =F50*E50 -> 1000
B51: 100 | C51: 9.59 | D51: =C51/B51 -> 0.0959
C52: avg | D52: =(D51+D50)/2 -> 0.07795
A54: Fungicide
A55: Fungicide | B55: number of sprays | C55: max application rate tbspoon per 1 gallon of water | D55: tablespoon in an oz | E55: application rate per 1 gal water in oz | G55: Gallons per 1,000 sq ft | H55: Total amount in oz to apply per growing | J55: Price for product | K55: oz in bottle | L55: price per oz | M55: Total cost for application per season | P55: Links
A56: Chlorothalonil Daconil -site one commercial | B56: 3 | E56: 3.6 | G56: 1 | H56: =(E56*G56)*B56 -> 10.8 | J56: 210 | K56: 320 | L56: =J56/K56 -> 0.65625 | M56: =H56*L56 -> 7.0875 | N56: using smaller bottles instead of commercial price here | P56: https://www.siteone.com/71418fung-daconil-weatherstik-fungicide-25-gal-agency/p/769562?store=454&cid=lia|siteone_2023_pest_XXXXX|{adgroup}|google&ds_k=&xmid=xm_%ebuy!_%25epid!_%ecid!&gad_source=1&gclid=Cj0KCQiA88a5BhDPARIsAFj595jFwv5HpkzBFqanxnnpc2uCP3M6wCFNlwqbts9ryoiWxF07CwchDZcaAokhEALw_wcB
A57: chlorothalonil - daconil | B57: 1 | C57: 3 | D57: 0.5 | E57: =C57*D57 -> 1.5 | G57: 1 | H57: =(E57*G57)*B57 -> 1.5 | J57: 17.16 | K57: 16 | L57: =J57/K57 -> 1.0725 | M57: =H57*L57 -> 1.60875 | P57: https://www.homedepot.com/p/Daconil-16-oz-Concentrate-Fungicide-100536524/202268570
A58: Copper - capt jack's | B58: 2 | E58: 2 | G58: 2.3 | H58: =(E58*G58)*B58 -> 9.2 | J58: 17.98 | K58: 16 | L58: =J58/K58 -> 1.12375 | M58: =H58*L58 -> 10.3385 | P58: https://www.homedepot.com/p/Bonide-Captain-Jack-s-Copper-Fungicide-16-oz-Concentrate-for-Organic-Gardening-Controls-Common-Diseases-811/203911375
B60: copper - 1.1 to 2.3 gallons of diluted spray per 1,000 sq ft is application rate with 0.5 to 2.0 fluid oz of product range mixed in. took max for both | M60: Fungicide use for celosia | N60: =M57*B57 -> 1.60875
A61: blue is used in this budget | B61: 1 gal per 1,000 sq ft. in rule of thumb for spraying for leaf coverage from Celeste. For daconil commercial product, 3.6 oz per 1,000 sq foot is application rate for single application recommendation from label.
B62: spray for leaf runoff, spot spraying
A64: Insecticide
B65: nu of sprays | E65: application rate per 1 gal water in oz | G65: gallons per 1,000 sq ft | H65: total amount in oz to apply per growing | J65: Price for product | K65: oz in bottle | L65: price per oz | M65: Total cost for application per season
A66: Sevin liquid - zetacypermethrin | B66: 2 | E66: 4 | G66: 1 | H66: =(E66*G66)*B66 -> 8 | J66: 18.97 | K66: 32 | L66: =J66/K66 -> 0.5928125 | M66: =(L66*H66) -> 4.7425 | P66: https://www.homedepot.com/p/Sevin-32-oz-16-000-sq-ft-Outdoor-Lawn-and-Garden-Insect-Killer-Concentrate-3-Month-Control-100530123/303593798
A67: separate sprays or tank mixed?
J68: knoxville seed and supply
A70: Irrigation System
B71: total sq ft
A72: 3 ft wide beds, 2 lines, 200 linear feet of tape of that, so if it is 3 ft wide, 666.67 linear feet of tape | B72: 1000
A74: Variable only one year use: | B74: Bed widthin ft | C74: bed length in ft | D74: number of lines in bed | E74: Linear ft of driptape needed | F74: Price of driptape | G74: Length in ft | H74: Price per ft of driptape
A75: Driptape - toro aqua-trax 5/8", 6 mil, 8 in, 0.5 gpm, 2500' | B75: 6 | C75: =B72/B75 -> 166.6666667 | D75: 4 | E75: =C75*D75 -> 666.6666667 | F75: 124 | G75: 2500 | H75: =F75/G75 -> 0.0496
A77: Irrigation Attachments
C78: Useful Life for Fixed Costs | D78: 3 | E78: Years
A79: From Irrigation King receipt Celeste | B79: Totalquantity from Celeste | C79: quantity for 1,000 | D79: price each unit | E79: Fixed cost | G79: Annual Purchase - Variable Costs
A80: 5/8" tape swivel X 5/8" tape swivel repair coupler | B80: 10 | C80: 5 | D80: 3.5 | E80: =C80*D80 -> 17.5 | G80: 5 | H80: =G80*D80 -> 17.5
A81: 8 mm punch red handle | B81: 1 | C81: 1 | D81: 6.95 | E81: 6.95 | H81: 0
A82: 5/8" tape end plug | B82: 20 | C82: 8 | D82: 5.2 | E82: 41.6 | G82: 2 | H82: 10.4
A83: starter mini-valve 10mm barb x 5/8" tape swivel | B83: 20 | C83: 8 | D83: 14.6 | E83: 116.8 | G83: 2 | H83: 29.2
A84: 3/4" permaloc elbow 800 series | B84: 1 | C84: 1 | D84: 3.69 | E84: 3.69 | H84: 0
A85: 3/4" permaloc x 3/4" MHT w cap plug 800 series | B85: 2 | C85: 1 | D85: 4.3 | E85: 4.3 | H85: 0 | J85: City | K85: Water prices per 1,000 gallons
A86: 3/4" permaloc coupler 800 series | B86: 2 | C86: 1 | D86: 4.32 | E86: 4.32 | H86: 0 | J86: Lebanon | K86: 10.968
A87: 3/4" permaloc x 3/4" FHT 800 series | B87: 2 | C87: 1 | D87: 6.06 | E87: 6.06 | H87: 0 | J87: Murfreesboro | K87: 3.66
A88: 3/4" permaloc x 3/4 MPT 800 series | B88: 2 | C88: 1 | D88: 2.76 | E88: 2.76 | H88: 0 | J88: Bristol | K88: 6.28
E89: 0 | H89: 0 | J89: Springfield | K89: 6.58
A90: From Dripworks receipt Celeste | E90: 0 | H90: 0 | J90: Fayetteville | K90: 7.83
A91: Mainline 3/4" poly tubing - 100 ft | B91: 1 | C91: 1 | D91: 31.95 | E91: 31.95 | H91: 0 | J91: Clinton | K91: 5.7
A92: 3/4 easy loc coupler | B92: 2 | D92: 4.98 | E92: 0 | G92: 2 | H92: 9.96 | J92: State average | K92: =AVERAGE(K86:K91) -> 6.836333333
A93: 3/4" easy loc elbow | B93: 2 | C93: 1 | D93: 7.78 | E93: 7.78 | H93: 0
A94: 3/4" easy loc x male hose end | B94: 1 | C94: 1 | D94: 1.59 | E94: 1.59 | H94: 0 | J94: Days to Maturity | L94: avg days to maturity
A95: 3/4" easy loc tee | B95: 1 | C95: 1 | D95: 5.95 | E95: 5.95 | H95: 0 | J95: 85 | K95: 100 | L95: =AVERAGE(J95:K95) -> 92.5
A96: 3/4" easy loc valve | B96: 1 | C96: 1 | D96: 4.95 | E96: 4.95 | H96: 0 | L96: =L95/7 -> 13.21428571
A97: shipping - do we include? (none on irrigation king) | C97: 1 | D97: 14.95 | E97: 14.95 | H97: 0 | L97: =ROUND(L96,0) -> 13 | M97: 13 weeks to maturity
C98: Total fixed cost | E98: =SUM(E80:E97) -> 271.15 | G98: Total | H98: =SUM(H80:H97) -> 67.06
D99: 3 Year Spread | E99: =E98/D78 -> 90.38333333
E100: =E99*0.2 -> 18.07666667
A101: Irrigation Usage Cost | B101: Inches of water to deliver | C101: Hours to run to deliver water | D101: minutes run | E101: Feet of driptape | F101: Gallons per minute emitted | G101: Total gallons emitted per minute for 1,000 sq feet | H101: Gallons per week | I101: Weeks to water (weeks to maturity from planting divided by 2) | J101: Total Gallons | K101: Thousand gallons | L101: Price per 1,000 gallon of water
A102: 0.5 GPM drip line at 12” emitter spacing | B102: 1 | C102: =5.8 -> 5.8 | D102: =C102*60 -> 348 | E102: 666.67 | F102: 0.5 | G102: 6.67 | H102: =G102*D102 -> 2321.16 | I102: =L97/2 -> 6.5 | J102: =H102*I102 -> 15087.54 | K102: =J102/1000 -> 15.08754 | L102: =K92 -> 6.836333333 | M102: =L102*K102 -> 103.1434526
C103: Penn state: https://extension.psu.edu/determining-how-long-to-run-drip-irrigation-systems-for-vegetables
A105: Harvest Containers
B106: Number of containers | C106: 10 L, 10 count johnnys | D106: price each bucket | E106: total cost
A107: Harvest containers | B107: 100 | C107: 20.5 | D107: =C107/10 -> 2.05 | E107: =B107*D107 -> 205 | F107: https://www.johnnyseeds.com/tools-supplies/cut-flower-supplies/flower-buckets/flower-buckets-10-l-10-count-7824.html
A109: Labor Based on 1/4 acre operation, one full time employee
B110: Hours per week for 1/4 acre | C110: Number of crops in 1/4 acre at one time | D110: Hours per wk devoted to this crop | E110: Avg Number of weeks to produce this crop | F110: Total hours devoted to crop
B111: 40 | C111: 5 | D111: =B111/C111 -> 8 | E111: =L97+1 -> 14 | F111: =D111*E111 -> 112 | H111: Weeks to produce this crop determined from weeks to maturity of the crop from planting
B113: Labor rate | C113: 15.87 | D113: https://flag.dol.gov/wage-data/adverse-effect-wage-rates#range
A116: Land Rent
A117: Land - cash rent | B117: 1,000 sq. ft. | C117: 1 | D117: 25 | E117: Cash rental rates are based on the 2022 USDA-NASS reported cash rental rates for irrigated cropland in Tennessee ($187/acre).
A119: Large Equipment
A120: Tiller | B120: 4000 | C120: 5 Year Depreciation | D120: =B120*0.42 -> 1680 | E120: https://www.bcsamerica.com/product/model-732
B121: =((B120-D120)/5)*0.2 -> 92.8 | C121: Per Year | D121: Salvage Value
A122: *Sharing cost with other sections of 1/4 acre | B122: =B121*0.2 -> 18.56
A123: Lawn Mower | B123: 2000 | C123: 5 Year Depreciation | D123: =B123*0.36 -> 720 | E123: https://www.foards.com/collections/bad-boy-mowers/products/bby25fj180
B124: =((B123-D123)/5)*0.2 -> 51.2 | C124: Per Year | D124: Salvage Value
A125: *Sharing cost with other sections of 1/4 acre | B125: =B124*0.2 -> 10.24
A127: Machinery Repair and Maintenance 5% | B127: =((B120+B123)*0.05)*0.2 -> 60
A129: Small Equipment
A130: - EcoCart Hookup Kit | B130: 692.11 | G130: QC Supply
A131: - Mulch Hole Burner | B131: 350 | G131: https://www.johnnyseeds.com/tools-supplies/mulches-and-weed-barrier/mulch-tools-accessories/mulch-hole-burners/mulch-hole-burner-starter-kit-7664.0.html?utm_source=google&utm_medium=cpc&utm_campaign=BL%20|%20PMAX%20|%20Tools%20&%20Supplies&utm_keyword=&gad_source=1&gclid=CjwKCAiA6t-6BhA3EiwAltRFGM_mVcoh-t7zeG2pT1Q5rWVXhXudQjk49l5oKaiZk0BBQfONmWn3pxoC2K4QAvD_BwE
A132: - Craftsman Large Shovels (2) $25 | B132: 50 | G132: https://www.lowes.com/pd/CRAFTSMAN-45-in-Wood-Handle-Digging-Shovel/5015343867
A133: - Craftsman Large Heavy Rake (1) $25 | B133: 25 | G133: Lowes
A134: - Craftsman Leaf Rake (1) $25 | B134: 25 | G134: Lowes
A135: - Craftsman Garden Hoe (1) $25 | B135: 25 | G135: Lowes
A136: - Craftsman Stirrup Hoe (1) $28 | B136: 28 | G136: Lowes
A137: - Craftsman Wheel Barrow (1) $120 | B137: 120 | G137: Lowes
A138: - Fiskars Hand Pruners (2) $30 | B138: 60 | G138: Lowes
A139: - Fiskars Lopper (1) | B139: 35 | G139: Lowes
A140: - Garden Hand Tool Set (1) | B140: 50 | G140: Lowes
A141: - Garden Gloves (2) | B141: 40 | G141: https://www.lowes.com/pd/Miracle-Gro-SYNTH-LEATHER-HI-DEX-GLOVES-M/1002630254
A142: - Rubber Mallet (staples) | B142: 20
A143: - Hammer (2) $6 | B143: 12
A144: Total | B144: =SUM(B130:B143) -> 1532.11 | C144: Lasts for 3 Years
A145: *Sharing cost with other sections of 1/4 acre | B145: =(B144/3)*0.2 -> 102.1406667
A147: Fuel
D148: Gallons | E148: Price per Gallon | H148: gallons fuel used
A149: Lawn Mower for 1,000 sq. ft. | B149: .1 Gallons | C149: Mow 24 Times | D149: =0.1*24 -> 2.4 | E149: 3.75 | F149: =D149*E149 -> 9 | G149: =ROUNDUP(D149,0) -> 3 | H149: =G149+D150 -> 6
A150: Tiller for 1,000 sq. ft. | B150: .75 Gallons | C150: 4 Passes | D150: =0.75*4 -> 3 | E150: 3.75 | F150: =D150*E150 -> 11.25
A151: Propane for Mulch Burner (1lb. Propane Cylinder) 20% in lbs | B151: 2 | C151: 13 | E151: =C151/B151 -> 6.5 | F151: =(13)*0.2 -> 2.6 | G151: https://www.lowes.com/pd/BernzOmatic-1-lb-2-Pack-Pre-Filled-Propane-Tank/50235565
B152: =B151*0.2 -> 0.4 | E152: Total | F152: =SUM(F149:F151) -> 22.85
A154: Building Expenses
B155: Purchase | E155: Salvage | F155: Salvage | G155: Average | H155: Useful | J155: Interest | M155: Property
A156: Item | B156: Price | C156: Units | D156: Cost | E156: Percent | F156: Value | G156: Value | H156: Life | I156: Depreciation | J156: Rate | K156: Interest | L156: Insurance | M156: Tax | N156: Repairs
A157: Storage and Post Harvest Handling Building (15'X20'X16') | B157: 10000 | C157: 1 | D157: =B157*C157 -> 10000 | E157: 0.25 | F157: =D157*E157 -> 2500 | G157: =(D157+F157+I157)/2 -> 6500 | H157: 15 | I157: =(D157-F157)/H157 -> 500 | J157: 0.07 | K157: =(CUMIPMT(J157,5,B157,1,5,1)/20)*-1 -> 69.83807112 | L157: =G157*0.005 -> 32.5 | M157: =G157*0.005 -> 32.5 | N157: =D157*0.02 -> 200
M159: Total Annual Cost for 1/4 acre operation | N159: =I157+K157+L157+M157+N157 -> 834.8380711
M160: Total Annual Cost for this crop (20% of total) | N160: =N159*0.2 -> 166.9676142
